[Event "Titled Tuesday Blitz January 03 Late 2023"]
[White "Sanchez, Robert"]
[Black "Pinheiro, Iung Alicio de O."]
[WhiteFideId "2034360"]
[BlackFideId "2104350"]
[WhiteElo "1966"]
[BlackElo "2306"]
[Result "1-0"]
[Round "11"]
[TimeControl "180+2"]
[Date "2023.01.03"]
[WhiteClock "0:00:29"]
[BlackClock "0:00:04"]

1. e4 {[%clk 0:03:00]}  d6 {[%clk 0:02:46]} 2. d4 {[%clk 0:03:00]}  Nf6 {[%clk 0:02:42]} 3. Nc3 {[%clk 0:03:01]}  g6 {[%clk 0:02:40]} 4. Be3 {[%clk 0:03:00]}  a6 {[%clk 0:02:37]} 5. f3 {[%clk 0:03:01]}  b5 {[%clk 0:02:27]} 6. Qd2 {[%clk 0:03:01]}  Nbd7 {[%clk 0:02:24]} 7. O-O-O {[%clk 0:03:01]}  Nb6 {[%clk 0:02:23]} 8. Bd3 {[%clk 0:02:44]}  Rb8 {[%clk 0:02:12]} 9. e5 {[%clk 0:02:40]}  Nfd5 {[%clk 0:01:46]} 10. Nxd5 {[%clk 0:02:39]}  Nxd5 {[%clk 0:01:46]} 11. Bg5 {[%clk 0:02:26]}  Be6 {[%clk 0:01:40]} 12. Ne2 {[%clk 0:02:24]}  Bg7 {[%clk 0:01:33]} 13. Bh6 {[%clk 0:02:20]}  Bxh6 {[%clk 0:01:18]} 14. Qxh6 {[%clk 0:02:19]}  c6 {[%clk 0:01:06]} 15. f4 {[%clk 0:02:12]}  Qa5 {[%clk 0:01:05]} 16. exd6 {[%clk 0:02:06]}  exd6 {[%clk 0:00:53]} 17. Qg7 {[%clk 0:02:01]}  Rf8 {[%clk 0:00:52]} 18. f5 {[%clk 0:01:38]}  gxf5 {[%clk 0:00:40]} 19. Qg3 {[%clk 0:01:26]}  Kd7 {[%clk 0:00:34]} 20. Nf4 {[%clk 0:01:21]}  Qxa2 {[%clk 0:00:29]} 21. Nxd5 {[%clk 0:01:20]}  cxd5 {[%clk 0:00:22]} 22. Rhf1 {[%clk 0:01:05]}  Qa1+ {[%clk 0:00:21]} 23. Kd2 {[%clk 0:01:05]}  Qxb2 {[%clk 0:00:21]} 24. Ra1 {[%clk 0:00:52]}  Qxd4 {[%clk 0:00:15]} 25. Rxa6 {[%clk 0:00:47]}  Qb4+ {[%clk 0:00:14]} 26. c3 {[%clk 0:00:33]}  Qb2+ {[%clk 0:00:14]} 27. Bc2 {[%clk 0:00:34]}  f4 {[%clk 0:00:04]} 28. Qxf4 {[%clk 0:00:29]} 1-0


[Site "https://www.chess.com"]

[Event "Titled Tuesday Blitz January 03 Late 2023"]
[White "Gonzalez, Francisco Silva"]
[Black "Suvorov, Alexander"]
[WhiteFideId "1512285"]
[BlackFideId "12977063"]
[WhiteElo "2021"]
[BlackElo "2338"]
[Result "1-0"]
[Round "11"]
[TimeControl "180+2"]
[Date "2023.01.03"]
[WhiteClock "0:01:10"]
[BlackClock "0:00:04"]

1. d4 {[%clk 0:03:00]}  Nf6 {[%clk 0:02:56]} 2. c4 {[%clk 0:03:01]}  d6 {[%clk 0:02:49]} 3. Nc3 {[%clk 0:03:00]}  g6 {[%clk 0:02:46]} 4. e4 {[%clk 0:03:00]}  Bg7 {[%clk 0:02:46]} 5. f3 {[%clk 0:02:59]}  e5 {[%clk 0:02:32]} 6. Nge2 {[%clk 0:02:57]}  Nc6 {[%clk 0:02:31]} 7. Be3 {[%clk 0:02:56]}  O-O {[%clk 0:02:28]} 8. d5 {[%clk 0:02:55]}  Ne7 {[%clk 0:02:27]} 9. h4 {[%clk 0:02:53]}  Nh5 {[%clk 0:02:21]} 10. g4 {[%clk 0:02:53]}  Nf4 {[%clk 0:02:21]} 11. Nxf4 {[%clk 0:02:53]}  exf4 {[%clk 0:02:22]} 12. Bxf4 {[%clk 0:02:54]}  f5 {[%clk 0:02:23]} 13. Bg5 {[%clk 0:02:54]}  h6 {[%clk 0:02:22]} 14. Be3 {[%clk 0:02:47]}  f4 {[%clk 0:01:52]} 15. Bd4 {[%clk 0:02:44]}  g5 {[%clk 0:01:46]} 16. h5 {[%clk 0:02:40]}  c5 {[%clk 0:01:37]} 17. Bxg7 {[%clk 0:02:40]}  Kxg7 {[%clk 0:01:37]} 18. Qd2 {[%clk 0:02:38]}  Ng8 {[%clk 0:01:34]} 19. O-O-O {[%clk 0:02:36]}  Qf6 {[%clk 0:01:34]} 20. Re1 {[%clk 0:02:34]}  Re8 {[%clk 0:01:34]} 21. Bd3 {[%clk 0:02:33]}  Bd7 {[%clk 0:01:33]} 22. Re2 {[%clk 0:02:31]}  a6 {[%clk 0:01:32]} 23. Rhe1 {[%clk 0:02:30]}  Qe5 {[%clk 0:01:32]} 24. Kb1 {[%clk 0:02:29]}  Rab8 {[%clk 0:01:31]} 25. a4 {[%clk 0:02:28]}  Ne7 {[%clk 0:01:22]} 26. Kc2 {[%clk 0:02:26]}  Nc8 {[%clk 0:01:19]} 27. Ra1 {[%clk 0:02:24]}  Na7 {[%clk 0:00:40]} 28. Ree1 {[%clk 0:02:22]}  Ra8 {[%clk 0:00:40]} 29. Bf1 {[%clk 0:02:19]}  Reb8 {[%clk 0:00:40]} 30. Ra3 {[%clk 0:02:11]}  Nc8 {[%clk 0:00:29]} 31. Rb3 {[%clk 0:02:09]}  Ne7 {[%clk 0:00:20]} 32. Rb6 {[%clk 0:02:07]}  Nc8 {[%clk 0:00:19]} 33. Rb3 {[%clk 0:02:07]}  Ne7 {[%clk 0:00:20]} 34. Ra1 {[%clk 0:02:06]}  Nc8 {[%clk 0:00:17]} 35. a5 {[%clk 0:02:02]}  b6 {[%clk 0:00:14]} 36. axb6 {[%clk 0:02:01]}  Nxb6 {[%clk 0:00:15]} 37. Rba3 {[%clk 0:01:56]}  Bc8 {[%clk 0:00:12]} 38. Ra5 {[%clk 0:01:54]}  Ra7 {[%clk 0:00:11]} 39. R1a2 {[%clk 0:01:47]}  Rab7 {[%clk 0:00:11]} 40. Rxa6 {[%clk 0:01:44]}  Rc7 {[%clk 0:00:09]} 41. Ra7 {[%clk 0:01:43]}  Rxa7 {[%clk 0:00:08]} 42. Rxa7+ {[%clk 0:01:43]}  Kg8 {[%clk 0:00:09]} 43. b3 {[%clk 0:01:41]}  Bd7 {[%clk 0:00:09]} 44. Qd1 {[%clk 0:01:38]}  Be8 {[%clk 0:00:09]} 45. Ra6 {[%clk 0:01:35]}  Nc8 {[%clk 0:00:09]} 46. Bd3 {[%clk 0:01:32]}  Qd4 {[%clk 0:00:08]} 47. Be2 {[%clk 0:01:29]}  Qe5 {[%clk 0:00:09]} 48. Qa1 {[%clk 0:01:26]}  Qd4 {[%clk 0:00:08]} 49. Ra8 {[%clk 0:01:25]}  Rxa8 {[%clk 0:00:08]} 50. Qxa8 {[%clk 0:01:25]}  Bd7 {[%clk 0:00:09]} 51. Qb7 {[%clk 0:01:25]}  Qg7 {[%clk 0:00:08]} 52. Qc7 {[%clk 0:01:24]}  Qe7 {[%clk 0:00:07]} 53. Bd3 {[%clk 0:01:22]}  Kf8 {[%clk 0:00:07]} 54. e5 {[%clk 0:01:21]}  dxe5 {[%clk 0:00:08]} 55. Ne4 {[%clk 0:01:17]}  Ke8 {[%clk 0:00:03]} 56. Nxc5 {[%clk 0:01:16]}  Bxg4 {[%clk 0:00:02]} 57. Qxe7+ {[%clk 0:01:12]}  Kxe7 {[%clk 0:00:02]} 58. fxg4 {[%clk 0:01:12]}  f3 {[%clk 0:00:03]} 59. Ne4 {[%clk 0:01:11]}  Nd6 {[%clk 0:00:02]} 60. Nxd6 {[%clk 0:01:11]}  Kxd6 {[%clk 0:00:03]} 61. b4 {[%clk 0:01:10]}  f2 {[%clk 0:00:03]} 62. Kd2 {[%clk 0:01:09]}  e4 {[%clk 0:00:04]} 63. Be2 {[%clk 0:01:09]}  Ke5 {[%clk 0:00:04]} 64. Ke3 {[%clk 0:01:10]} 1-0


[Site "https://www.chess.com"]

[Event "Titled Tuesday Blitz January 03 Late 2023"]
[White "Kostiukov, Alexandr"]
[Black "Fiorito, Francisco"]
[WhiteFideId "14108100"]
[BlackFideId "180165"]
[WhiteElo "2271"]
[BlackElo "2305"]
[Result "0-1"]
[Round "11"]
[TimeControl "180+2"]
[Date "2023.01.03"]
[WhiteClock "0:00:05"]
[BlackClock "0:02:11"]

1. e4 {[%clk 0:02:51]}  c5 {[%clk 0:02:59]} 2. Nf3 {[%clk 0:02:51]}  Nc6 {[%clk 0:02:59]} 3. d4 {[%clk 0:02:52]}  cxd4 {[%clk 0:03:00]} 4. Nxd4 {[%clk 0:02:53]}  g6 {[%clk 0:03:00]} 5. Nc3 {[%clk 0:02:36]}  Bg7 {[%clk 0:02:58]} 6. Be3 {[%clk 0:02:35]}  Nf6 {[%clk 0:02:59]} 7. Nxc6 {[%clk 0:02:33]}  bxc6 {[%clk 0:02:56]} 8. e5 {[%clk 0:02:33]}  Ng8 {[%clk 0:02:56]} 9. Bd4 {[%clk 0:02:33]}  Qa5 {[%clk 0:02:50]} 10. f4 {[%clk 0:02:30]}  f6 {[%clk 0:02:50]} 11. exf6 {[%clk 0:02:14]}  Nxf6 {[%clk 0:02:46]} 12. Be2 {[%clk 0:01:41]}  O-O {[%clk 0:02:44]} 13. O-O {[%clk 0:01:40]}  d5 {[%clk 0:02:42]} 14. Bf3 {[%clk 0:01:27]}  Bf5 {[%clk 0:02:40]} 15. Re1 {[%clk 0:01:24]}  Rfe8 {[%clk 0:02:39]} 16. g4 {[%clk 0:01:14]}  Bd7 {[%clk 0:02:32]} 17. g5 {[%clk 0:01:14]}  Nh5 {[%clk 0:02:28]} 18. Bxh5 {[%clk 0:01:10]}  Bxd4+ {[%clk 0:02:27]} 19. Qxd4 {[%clk 0:01:10]}  gxh5 {[%clk 0:02:28]} 20. Qe5 {[%clk 0:01:00]}  Qc5+ {[%clk 0:02:27]} 21. Kh1 {[%clk 0:00:53]}  Bg4 {[%clk 0:02:25]} 22. Re3 {[%clk 0:00:32]}  Qd6 {[%clk 0:02:16]} 23. h3 {[%clk 0:00:08]}  Qxe5 {[%clk 0:02:14]} 24. fxe5 {[%clk 0:00:09]}  Bf5 {[%clk 0:02:14]} 25. Rf1 {[%clk 0:00:08]}  e6 {[%clk 0:02:14]} 26. Ne2 {[%clk 0:00:07]}  c5 {[%clk 0:02:14]} 27. c3 {[%clk 0:00:07]}  Rf8 {[%clk 0:02:13]} 28. Nf4 {[%clk 0:00:07]}  h4 {[%clk 0:02:11]} 29. Kh2 {[%clk 0:00:07]}  Rab8 {[%clk 0:02:11]} 30. b3 {[%clk 0:00:08]}  a5 {[%clk 0:02:11]} 31. Rf2 {[%clk 0:00:08]}  a4 {[%clk 0:02:09]} 32. bxa4 {[%clk 0:00:07]}  Ra8 {[%clk 0:02:10]} 33. Rg2 {[%clk 0:00:08]}  Rxa4 {[%clk 0:02:09]} 34. g6 {[%clk 0:00:09]}  Rxf4 {[%clk 0:02:09]} 35. gxh7+ {[%clk 0:00:07]}  Kxh7 {[%clk 0:02:10]} 36. c4 {[%clk 0:00:07]}  Be4 {[%clk 0:02:10]} 37. Rd2 {[%clk 0:00:05]}  d4 {[%clk 0:02:10]} 38. Rb3 {[%clk 0:00:05]}  Rf2+ {[%clk 0:02:10]} 39. Rxf2 {[%clk 0:00:05]}  Rxf2+ {[%clk 0:02:11]} 40. Kg1 {[%clk 0:00:05]}  Rxa2 {[%clk 0:02:11]} 0-1


[Site "https://www.chess.com"]

[Event "Titled Tuesday Blitz January 03 Late 2023"]
[White "Reprintsev, Alexander"]
[Black "Vifleemskaia, Svetlana"]
[WhiteFideId "14100541"]
[BlackFideId "4129490"]
[WhiteElo "2253"]
[BlackElo "1971"]
[Result "1-0"]
[Round "11"]
[TimeControl "180+2"]
[Date "2023.01.03"]
[WhiteClock "0:00:16"]
[BlackClock "0:00:02"]

1. e4 {[%clk 0:02:17]}  e5 {[%clk 0:02:58]} 2. f4 {[%clk 0:02:16]}  d5 {[%clk 0:02:57]} 3. exd5 {[%clk 0:02:15]}  exf4 {[%clk 0:02:58]} 4. Nf3 {[%clk 0:02:15]}  Nf6 {[%clk 0:02:56]} 5. Bb5+ {[%clk 0:02:12]}  c6 {[%clk 0:02:56]} 6. dxc6 {[%clk 0:02:12]}  Nxc6 {[%clk 0:02:52]} 7. Nc3 {[%clk 0:02:12]}  Qb6 {[%clk 0:02:46]} 8. a4 {[%clk 0:02:05]}  Bg4 {[%clk 0:02:35]} 9. a5 {[%clk 0:02:00]}  Qc5 {[%clk 0:02:33]} 10. d4 {[%clk 0:01:59]}  Qh5 {[%clk 0:02:24]} 11. O-O {[%clk 0:01:55]}  O-O-O {[%clk 0:02:20]} 12. Bxc6 {[%clk 0:01:53]}  bxc6 {[%clk 0:02:20]} 13. Bxf4 {[%clk 0:01:53]}  Bd6 {[%clk 0:02:10]} 14. Ne2 {[%clk 0:01:47]}  Nd5 {[%clk 0:01:59]} 15. Bxd6 {[%clk 0:01:45]}  Rxd6 {[%clk 0:01:59]} 16. Ng3 {[%clk 0:01:45]}  Qg6 {[%clk 0:01:43]} 17. Qd2 {[%clk 0:01:44]}  Bxf3 {[%clk 0:01:30]} 18. Rxf3 {[%clk 0:01:44]}  Rhd8 {[%clk 0:01:20]} 19. Raf1 {[%clk 0:01:39]}  f6 {[%clk 0:01:18]} 20. Nf5 {[%clk 0:01:36]}  R6d7 {[%clk 0:01:17]} 21. Rb3 {[%clk 0:01:25]}  Qg5 {[%clk 0:00:51]} 22. Qd3 {[%clk 0:01:19]}  Nc7 {[%clk 0:00:45]} 23. c3 {[%clk 0:01:05]}  g6 {[%clk 0:00:42]} 24. Ne3 {[%clk 0:01:01]}  Qxa5 {[%clk 0:00:37]} 25. Nc4 {[%clk 0:00:59]}  Qd5 {[%clk 0:00:27]} 26. Rxf6 {[%clk 0:00:51]}  Nb5 {[%clk 0:00:20]} 27. Rxc6+ {[%clk 0:00:39]}  Qxc6 {[%clk 0:00:18]} 28. Rxb5 {[%clk 0:00:39]}  Rb7 {[%clk 0:00:14]} 29. Ra5 {[%clk 0:00:23]}  Kb8 {[%clk 0:00:08]} 30. Qg3+ {[%clk 0:00:21]}  Ka8 {[%clk 0:00:07]} 31. Ne5 {[%clk 0:00:19]}  Qc7 {[%clk 0:00:06]} 32. Ra2 {[%clk 0:00:19]}  Re8 {[%clk 0:00:04]} 33. Qd3 {[%clk 0:00:18]}  Reb8 {[%clk 0:00:03]} 34. Qe4 {[%clk 0:00:17]}  Re8 {[%clk 0:00:02]} 35. Qd5 {[%clk 0:00:16]} 1-0


[Site "https://www.chess.com"]

[Event "Titled Tuesday Blitz January 03 Late 2023"]
[White "Weisz, Bryan"]
[Black "Yeritsyan, Hayk"]
[WhiteFideId "30934133"]
[BlackFideId "13307320"]
[WhiteElo "1973"]
[BlackElo "2241"]
[Result "0-1"]
[Round "11"]
[TimeControl "180+2"]
[Date "2023.01.03"]
[WhiteClock "0:00:03"]
[BlackClock "0:00:28"]

1. Nf3 {[%clk 0:02:52]}  d5 {[%clk 0:02:46]} 2. Na3 {[%clk 0:02:46]}  Nf6 {[%clk 0:02:46]} 3. c4 {[%clk 0:02:46]}  c6 {[%clk 0:02:46]} 4. b4 {[%clk 0:02:38]}  Bf5 {[%clk 0:02:43]} 5. Bb2 {[%clk 0:02:37]}  e6 {[%clk 0:02:43]} 6. Qb3 {[%clk 0:02:34]}  h6 {[%clk 0:02:41]} 7. d3 {[%clk 0:02:30]}  Be7 {[%clk 0:02:40]} 8. Nc2 {[%clk 0:02:30]}  O-O {[%clk 0:02:41]} 9. g3 {[%clk 0:02:26]}  Bh7 {[%clk 0:02:41]} 10. Bg2 {[%clk 0:02:27]}  Nbd7 {[%clk 0:02:41]} 11. O-O {[%clk 0:02:27]}  Qb6 {[%clk 0:02:41]} 12. a3 {[%clk 0:02:11]}  Qd8 {[%clk 0:02:40]} 13. b5 {[%clk 0:02:06]}  Nc5 {[%clk 0:02:39]} 14. Qa2 {[%clk 0:01:59]}  cxb5 {[%clk 0:02:35]} 15. cxb5 {[%clk 0:01:59]}  Rc8 {[%clk 0:02:34]} 16. Rac1 {[%clk 0:01:55]}  Qa5 {[%clk 0:02:26]} 17. Ncd4 {[%clk 0:01:50]}  Na4 {[%clk 0:02:10]} 18. Ba1 {[%clk 0:01:42]}  Nd7 {[%clk 0:01:49]} 19. Nd2 {[%clk 0:01:13]}  Nc3 {[%clk 0:01:03]} 20. Qb3 {[%clk 0:00:36]}  Nxe2+ {[%clk 0:00:58]} 21. Nxe2 {[%clk 0:00:32]}  Qxd2 {[%clk 0:00:58]} 22. Nc3 {[%clk 0:00:18]}  Qxd3 {[%clk 0:00:50]} 23. Rfd1 {[%clk 0:00:16]}  Qc4 {[%clk 0:00:45]} 24. Qb2 {[%clk 0:00:17]}  Bf6 {[%clk 0:00:43]} 25. Qd2 {[%clk 0:00:15]}  Qb3 {[%clk 0:00:37]} 26. Rb1 {[%clk 0:00:05]}  Bxb1 {[%clk 0:00:36]} 27. Rxb1 {[%clk 0:00:05]}  Bxc3 {[%clk 0:00:31]} 28. Qd3 {[%clk 0:00:03]}  Qc4 {[%clk 0:00:28]} 29. Qc2 {[%clk 0:00:03]} 0-1


[Site "https://www.chess.com"]

[Event "Titled Tuesday Blitz January 03 Late 2023"]
[White "Almagro Mazariegos, Sebastian"]
[Black "Fishbein, Mitch"]
[WhiteFideId "2221640"]
[BlackFideId "30922917"]
[WhiteElo "2280"]
[BlackElo "2120"]
[Result "1-0"]
[Round "11"]
[TimeControl "180+2"]
[Date "2023.01.03"]
[WhiteClock "0:00:08"]
[BlackClock "0:00:02"]

1. e4 {[%clk 0:02:53]}  c5 {[%clk 0:02:58]} 2. Nf3 {[%clk 0:02:53]}  e6 {[%clk 0:02:58]} 3. d4 {[%clk 0:02:53]}  cxd4 {[%clk 0:02:58]} 4. Nxd4 {[%clk 0:02:53]}  Nc6 {[%clk 0:02:57]} 5. Nc3 {[%clk 0:02:54]}  Qc7 {[%clk 0:02:57]} 6. g3 {[%clk 0:02:53]}  a6 {[%clk 0:02:56]} 7. Bg2 {[%clk 0:02:53]}  Nf6 {[%clk 0:02:56]} 8. O-O {[%clk 0:02:53]}  Nxd4 {[%clk 0:02:55]} 9. Qxd4 {[%clk 0:02:53]}  Bc5 {[%clk 0:02:56]} 10. Bf4 {[%clk 0:02:53]}  d6 {[%clk 0:02:56]} 11. Qd3 {[%clk 0:02:53]}  h6 {[%clk 0:02:52]} 12. Na4 {[%clk 0:02:53]}  e5 {[%clk 0:02:47]} 13. Nxc5 {[%clk 0:02:52]}  dxc5 {[%clk 0:02:02]} 14. Be3 {[%clk 0:02:50]}  Be6 {[%clk 0:02:01]} 15. Qc3 {[%clk 0:02:44]}  Rc8 {[%clk 0:01:55]} 16. a4 {[%clk 0:02:34]}  O-O {[%clk 0:01:53]} 17. a5 {[%clk 0:02:31]}  Rfd8 {[%clk 0:01:49]} 18. f3 {[%clk 0:02:26]}  Qc6 {[%clk 0:01:45]} 19. Rfd1 {[%clk 0:02:24]}  Qb5 {[%clk 0:01:30]} 20. Bf1 {[%clk 0:02:10]}  c4 {[%clk 0:01:26]} 21. b3 {[%clk 0:01:48]}  Rxd1 {[%clk 0:01:13]} 22. Rxd1 {[%clk 0:01:45]}  Qc6 {[%clk 0:01:12]} 23. b4 {[%clk 0:01:30]}  Nd7 {[%clk 0:01:05]} 24. Qd2 {[%clk 0:01:10]}  b5 {[%clk 0:00:56]} 25. c3 {[%clk 0:01:04]}  Kh7 {[%clk 0:00:43]} 26. g4 {[%clk 0:01:04]}  Nf8 {[%clk 0:00:41]} 27. Qd6 {[%clk 0:01:00]}  Ng6 {[%clk 0:00:33]} 28. Qxc6 {[%clk 0:00:50]}  Rxc6 {[%clk 0:00:33]} 29. Kf2 {[%clk 0:00:49]}  Nf4 {[%clk 0:00:27]} 30. Bc5 {[%clk 0:00:24]}  g5 {[%clk 0:00:20]} 31. Rd8 {[%clk 0:00:21]}  Kg7 {[%clk 0:00:18]} 32. Ra8 {[%clk 0:00:20]}  h5 {[%clk 0:00:13]} 33. h3 {[%clk 0:00:19]}  h4 {[%clk 0:00:12]} 34. Ke3 {[%clk 0:00:19]}  Bc8 {[%clk 0:00:09]} 35. Ra7 {[%clk 0:00:17]}  Kf6 {[%clk 0:00:08]} 36. Be7+ {[%clk 0:00:16]}  Kg6 {[%clk 0:00:08]} 37. Bc5 {[%clk 0:00:15]}  Ne6 {[%clk 0:00:07]} 38. Be7 {[%clk 0:00:13]}  Rc7 {[%clk 0:00:03]} 39. Rxc7 {[%clk 0:00:12]}  Nxc7 {[%clk 0:00:02]} 40. Bd6 {[%clk 0:00:12]}  Ne6 {[%clk 0:00:02]} 41. Bxe5 {[%clk 0:00:13]}  f6 {[%clk 0:00:03]} 42. Bd6 {[%clk 0:00:12]}  Bd7 {[%clk 0:00:03]} 43. Be2 {[%clk 0:00:10]}  Nf8 {[%clk 0:00:02]} 44. Bxf8 {[%clk 0:00:08]}  Be6 {[%clk 0:00:02]} 45. Bd6 {[%clk 0:00:08]} 1-0


[Site "https://www.chess.com"]

[Event "Titled Tuesday Blitz January 03 Late 2023"]
[White "Alexikov, Alexander"]
[Black "Quinones Garcia, Santiago"]
[WhiteFideId "14103958"]
[BlackFideId "4408497"]
[WhiteElo "2209"]
[BlackElo "2248"]
[Result "1-0"]
[Round "11"]
[TimeControl "180+2"]
[Date "2023.01.03"]
[WhiteClock "0:01:10"]
[BlackClock "0:02:00"]

1. e4 {[%clk 0:03:00]}  e5 {[%clk 0:02:55]} 2. Nf3 {[%clk 0:03:00]}  Nc6 {[%clk 0:02:54]} 3. c3 {[%clk 0:03:00]}  Nf6 {[%clk 0:02:54]} 4. d4 {[%clk 0:02:59]}  exd4 {[%clk 0:02:54]} 5. e5 {[%clk 0:02:58]}  Ne4 {[%clk 0:02:54]} 6. Qe2 {[%clk 0:02:57]}  Nc5 {[%clk 0:02:51]} 7. cxd4 {[%clk 0:02:57]}  Na6 {[%clk 0:02:48]} 8. d5 {[%clk 0:02:54]}  Ncb8 {[%clk 0:02:48]} 9. d6 {[%clk 0:02:46]}  h6 {[%clk 0:02:46]} 10. Nc3 {[%clk 0:02:43]}  Nc6 {[%clk 0:02:44]} 11. Bf4 {[%clk 0:02:33]}  g5 {[%clk 0:02:41]} 12. Bg3 {[%clk 0:02:32]}  Bg7 {[%clk 0:02:41]} 13. O-O-O {[%clk 0:02:17]}  O-O {[%clk 0:02:40]} 14. h4 {[%clk 0:02:07]}  g4 {[%clk 0:02:39]} 15. Nh2 {[%clk 0:02:06]}  h5 {[%clk 0:02:39]} 16. f3 {[%clk 0:02:06]}  cxd6 {[%clk 0:02:35]} 17. exd6 {[%clk 0:02:03]}  Qa5 {[%clk 0:02:33]} 18. Rd5 {[%clk 0:01:49]}  Qb4 {[%clk 0:02:30]} 19. a3 {[%clk 0:01:39]}  Qb3 {[%clk 0:02:29]} 20. Qc2 {[%clk 0:01:32]}  Qb6 {[%clk 0:02:06]} 21. Bf2 {[%clk 0:01:22]}  Qd8 {[%clk 0:02:01]} 22. Rxh5 {[%clk 0:01:15]}  f5 {[%clk 0:02:00]} 23. Bc4+ {[%clk 0:01:10]} 1-0


[Site "https://www.chess.com"]

[Event "Titled Tuesday Blitz January 03 Late 2023"]
[White "Pace, Christopher"]
[Black "Lorenzo De La Riva, Lazaro"]
[WhiteFideId "2610167"]
[BlackFideId "2268809"]
[WhiteElo "2053"]
[BlackElo "2404"]
[Result "0-1"]
[Round "11"]
[TimeControl "180+2"]
[Date "2023.01.03"]
[WhiteClock "0:00:09"]
[BlackClock "0:01:15"]

1. e4 {[%clk 0:02:59]}  d6 {[%clk 0:02:56]} 2. d4 {[%clk 0:02:58]}  Nf6 {[%clk 0:02:57]} 3. Nc3 {[%clk 0:02:59]}  Nbd7 {[%clk 0:02:56]} 4. Nf3 {[%clk 0:02:56]}  e5 {[%clk 0:02:56]} 5. Bc4 {[%clk 0:02:57]}  Be7 {[%clk 0:02:56]} 6. O-O {[%clk 0:02:57]}  O-O {[%clk 0:02:55]} 7. Re1 {[%clk 0:02:57]}  c6 {[%clk 0:02:56]} 8. h3 {[%clk 0:02:57]}  b5 {[%clk 0:02:54]} 9. Bb3 {[%clk 0:02:57]}  a6 {[%clk 0:02:51]} 10. a4 {[%clk 0:02:52]}  b4 {[%clk 0:02:51]} 11. Nb1 {[%clk 0:02:52]}  Bb7 {[%clk 0:02:49]} 12. c3 {[%clk 0:02:22]}  a5 {[%clk 0:02:43]} 13. Nbd2 {[%clk 0:02:21]}  c5 {[%clk 0:02:40]} 14. d5 {[%clk 0:02:18]}  Nb6 {[%clk 0:02:35]} 15. c4 {[%clk 0:02:17]}  Ne8 {[%clk 0:02:33]} 16. Bc2 {[%clk 0:02:16]}  g6 {[%clk 0:02:30]} 17. b3 {[%clk 0:02:15]}  Ng7 {[%clk 0:02:30]} 18. Nf1 {[%clk 0:02:13]}  Bc8 {[%clk 0:02:31]} 19. Bh6 {[%clk 0:02:12]}  Kh8 {[%clk 0:02:26]} 20. Ng3 {[%clk 0:02:05]}  f6 {[%clk 0:02:26]} 21. Qd2 {[%clk 0:01:54]}  Rf7 {[%clk 0:02:26]} 22. Nh2 {[%clk 0:01:46]}  Nd7 {[%clk 0:02:25]} 23. Ng4 {[%clk 0:01:34]}  Qe8 {[%clk 0:02:14]} 24. Re3 {[%clk 0:01:27]}  Nf8 {[%clk 0:02:10]} 25. Rf3 {[%clk 0:01:26]}  Bd8 {[%clk 0:02:10]} 26. Ne3 {[%clk 0:01:07]}  Raa7 {[%clk 0:02:05]} 27. h4 {[%clk 0:01:07]}  Rac7 {[%clk 0:02:00]} 28. h5 {[%clk 0:01:05]}  Nxh5 {[%clk 0:01:55]} 29. Nxh5 {[%clk 0:01:02]}  gxh5 {[%clk 0:01:56]} 30. Nf5 {[%clk 0:01:02]}  Bxf5 {[%clk 0:01:53]} 31. Rxf5 {[%clk 0:00:59]}  Ng6 {[%clk 0:01:51]} 32. g3 {[%clk 0:00:53]}  Be7 {[%clk 0:01:51]} 33. Bd1 {[%clk 0:00:51]}  Bf8 {[%clk 0:01:51]} 34. Bxh5 {[%clk 0:00:42]}  Bxh6 {[%clk 0:01:42]} 35. Qxh6 {[%clk 0:00:43]}  Qf8 {[%clk 0:01:42]} 36. Qxf8+ {[%clk 0:00:22]}  Rxf8 {[%clk 0:01:43]} 37. Kg2 {[%clk 0:00:15]}  Kg7 {[%clk 0:01:43]} 38. Rh1 {[%clk 0:00:15]}  Ne7 {[%clk 0:01:40]} 39. Rf3 {[%clk 0:00:15]}  f5 {[%clk 0:01:40]} 40. exf5 {[%clk 0:00:14]}  Nxf5 {[%clk 0:01:38]} 41. Bg4 {[%clk 0:00:14]}  Nd4 {[%clk 0:01:38]} 42. Rxf8 {[%clk 0:00:14]}  Kxf8 {[%clk 0:01:38]} 43. Bd1 {[%clk 0:00:15]}  Rf7 {[%clk 0:01:36]} 44. Rh6 {[%clk 0:00:15]}  Ke7 {[%clk 0:01:35]} 45. Kg1 {[%clk 0:00:06]}  Rg7 {[%clk 0:01:34]} 46. Kg2 {[%clk 0:00:06]}  Kd7 {[%clk 0:01:31]} 47. Rh4 {[%clk 0:00:04]}  Ke7 {[%clk 0:01:31]} 48. Rh6 {[%clk 0:00:05]}  Nf5 {[%clk 0:01:31]} 49. Re6+ {[%clk 0:00:04]}  Kd7 {[%clk 0:01:31]} 50. Rf6 {[%clk 0:00:02]}  Nd4 {[%clk 0:01:29]} 51. Kh3 {[%clk 0:00:03]}  Ke7 {[%clk 0:01:27]} 52. Rh6 {[%clk 0:00:03]}  Rf7 {[%clk 0:01:26]} 53. f4 {[%clk 0:00:01]}  exf4 {[%clk 0:01:25]} 54. gxf4 {[%clk 0:00:01]}  Rxf4 {[%clk 0:01:25]} 55. Rxh7+ {[%clk 0:00:02]}  Kf6 {[%clk 0:01:24]} 56. Rh6+ {[%clk 0:00:02]}  Ke5 {[%clk 0:01:25]} 57. Rh5+ {[%clk 0:00:03]}  Ke4 {[%clk 0:01:25]} 58. Rh6 {[%clk 0:00:03]}  Rf1 {[%clk 0:01:18]} 59. Rh4+ {[%clk 0:00:03]}  Ke3 {[%clk 0:01:18]} 60. Bg4 {[%clk 0:00:04]}  Rh1+ {[%clk 0:01:17]} 61. Kg3 {[%clk 0:00:04]}  Rxh4 {[%clk 0:01:18]} 62. Kxh4 {[%clk 0:00:05]}  Nxb3 {[%clk 0:01:18]} 63. Kg5 {[%clk 0:00:06]}  Nd4 {[%clk 0:01:15]} 64. Kf6 {[%clk 0:00:06]}  b3 {[%clk 0:01:16]} 65. Bh5 {[%clk 0:00:06]}  Kd2 {[%clk 0:01:14]} 66. Ke7 {[%clk 0:00:06]}  b2 {[%clk 0:01:13]} 67. Bg6 {[%clk 0:00:05]}  Nc2 {[%clk 0:01:14]} 68. Bxc2 {[%clk 0:00:05]}  Kxc2 {[%clk 0:01:15]} 69. Kxd6 {[%clk 0:00:05]}  b1=Q {[%clk 0:01:15]} 70. Kxc5 {[%clk 0:00:06]}  Qb4+ {[%clk 0:01:15]} 71. Kd4 {[%clk 0:00:07]}  Qxa4 {[%clk 0:01:15]} 72. d6 {[%clk 0:00:08]}  Qc6 {[%clk 0:01:14]} 73. c5 {[%clk 0:00:09]}  a4 {[%clk 0:01:14]} 74. Ke5 {[%clk 0:00:09]}  Qxc5+ {[%clk 0:01:15]} 75. Ke6 {[%clk 0:00:09]}  Qxd6+ {[%clk 0:01:15]} 0-1


[Site "https://www.chess.com"]